[Event "*** Titled Tuesday Blitz"]
[Site "Chess.com"]
[Date "2021.03.09"]
[Round "4"]
[White "poneis_malditos"]
[Black "bogcsab"]
[Result "1-0"]
[WhiteElo "2326"]
[BlackElo "2167"]
[TimeControl "180+1"]
[EndTime "10:42:03 PST"]
[Termination "poneis_malditos won on time"]

1. e4 {[%clk 0:03:00.9]} 1... d6 {[%clk 0:03:00.2]} 2. Nc3 {[%clk 0:03:00.5]}
2... Nf6 {[%clk 0:03:00.7]} 3. g3 {[%clk 0:03:01.1]} 3... g6 {[%clk 0:03:01.3]}
4. Bg2 {[%clk 0:03:01.5]} 4... Bg7 {[%clk 0:03:02]} 5. d3 {[%clk 0:03:02.1]}
5... O-O {[%clk 0:03:02.8]} 6. Nge2 {[%clk 0:03:02.1]} 6... e5 {[%clk
0:03:02.3]} 7. O-O {[%clk 0:03:02.6]} 7... Ng4 {[%clk 0:03:00.1]} 8. h3 {[%clk
0:03:02.1]} 8... Nh6 {[%clk 0:03:00.2]} 9. Be3 {[%clk 0:02:57.7]} 9... f5 {[%clk
0:03:00.2]} 10. Qd2 {[%clk 0:02:55.3]} 10... Nf7 {[%clk 0:03:00.9]} 11. exf5
{[%clk 0:02:54.3]} 11... gxf5 {[%clk 0:03:00.6]} 12. f4 {[%clk 0:02:53.7]} 12...
c6 {[%clk 0:02:59]} 13. Kh2 {[%clk 0:02:48.9]} 13... Qe7 {[%clk 0:02:58.7]} 14.
Rg1 {[%clk 0:02:48.5]} 14... Kh8 {[%clk 0:02:58]} 15. Raf1 {[%clk 0:02:48.3]}
15... Re8 {[%clk 0:02:50.7]} 16. fxe5 {[%clk 0:02:41.4]} 16... dxe5 {[%clk
0:02:49.1]} 17. d4 {[%clk 0:02:29.7]} 17... Na6 {[%clk 0:02:35.2]} 18. dxe5
{[%clk 0:02:24.2]} 18... Nxe5 {[%clk 0:02:34.8]} 19. Bh6 {[%clk 0:02:18.1]}
19... Nc4 {[%clk 0:02:21.9]} 20. Bxg7+ {[%clk 0:02:14.7]} 20... Qxg7 {[%clk
0:02:20.3]} 21. Qc1 {[%clk 0:01:48.5]} 21... Ne3 {[%clk 0:02:19.9]} 22. Rf3
{[%clk 0:01:47.6]} 22... Qh6 {[%clk 0:02:02.8]} 23. Nf4 {[%clk 0:01:44.9]} 23...
Ng4+ {[%clk 0:01:54.9]} 24. Kh1 {[%clk 0:01:41.7]} 24... Nc5 {[%clk 0:01:31.7]}
25. Re1 {[%clk 0:01:34.7]} 25... Ne4 {[%clk 0:01:23.7]} 26. Kg1 {[%clk
0:01:30.3]} 26... Ngf6 {[%clk 0:01:12.4]} 27. Rfe3 {[%clk 0:01:29.7]} 27... Bd7
{[%clk 0:00:53.5]} 28. Qd1 {[%clk 0:01:22.4]} 28... Rad8 {[%clk 0:00:50.3]} 29.
Qd4 {[%clk 0:01:17.4]} 29... Bc8 {[%clk 0:00:47.8]} 30. Qxa7 {[%clk 0:01:01.3]}
30... Rd2 {[%clk 0:00:45.6]} 31. Nxe4 {[%clk 0:00:42.3]} 31... fxe4 {[%clk
0:00:42.5]} 32. R3e2 {[%clk 0:00:33.3]} 32... Red8 {[%clk 0:00:20.6]} 33. Qa5
{[%clk 0:00:31.9]} 33... Rd1 {[%clk 0:00:14.3]} 34. Qc3 {[%clk 0:00:23.9]} 34...
Qg7 {[%clk 0:00:10.3]} 35. Rxd1 {[%clk 0:00:17.5]} 35... Rxd1+ {[%clk
0:00:10.1]} 36. Re1 {[%clk 0:00:18.4]} 36... Rd8 {[%clk 0:00:07.4]} 37. Bxe4
{[%clk 0:00:16.6]} 37... Nxe4 {[%clk 0:00:03.2]} 38. Qxg7+ {[%clk 0:00:17.5]}
38... Kxg7 {[%clk 0:00:03.1]} 39. Rxe4 {[%clk 0:00:17.9]} 39... Rd1+ {[%clk
0:00:03.7]} 40. Kf2 {[%clk 0:00:17.4]} 40... Rd2+ {[%clk 0:00:04.1]} 41. Re2
{[%clk 0:00:18]} 41... Rxe2+ {[%clk 0:00:03.6]} 42. Kxe2 {[%clk 0:00:17.4]}
42... Kf6 {[%clk 0:00:04]} 43. Kf3 {[%clk 0:00:16.9]} 43... Ke5 {[%clk
0:00:02.5]} 44. g4 {[%clk 0:00:17.1]} 1-0

[Event "*** Titled Tuesday Blitz"]
[Site "Chess.com"]
[Date "2021.03.09"]
[Round "4"]
[White "GoltsevDmitry2000"]
[Black "BilodeauA"]
[Result "0-1"]
[WhiteElo "2717"]
[BlackElo "2911"]
[TimeControl "180+1"]
[EndTime "10:42:05 PST"]
[Termination "BilodeauA won on time"]

1. e4 {[%clk 0:03:00.3]} 1... c5 {[%clk 0:03:00.1]} 2. Nf3 {[%clk 0:03:00.3]}
2... Nc6 {[%clk 0:02:59.8]} 3. d4 {[%clk 0:03:00.8]} 3... cxd4 {[%clk
0:03:00.7]} 4. Nxd4 {[%clk 0:03:01.4]} 4... Qb6 {[%clk 0:03:01.3]} 5. Nb3 {[%clk
0:03:01.3]} 5... Nf6 {[%clk 0:03:01.8]} 6. Nc3 {[%clk 0:03:01.5]} 6... e6 {[%clk
0:03:02.4]} 7. Be3 {[%clk 0:03:01.7]} 7... Qc7 {[%clk 0:03:02.9]} 8. Be2 {[%clk
0:03:01.7]} 8... Bb4 {[%clk 0:03:02.4]} 9. Qd3 {[%clk 0:02:52.8]} 9... d5 {[%clk
0:02:48.1]} 10. exd5 {[%clk 0:02:50.2]} 10... Nxd5 {[%clk 0:02:47.7]} 11. Bd2
{[%clk 0:02:50.1]} 11... Nxc3 {[%clk 0:02:32.2]} 12. Bxc3 {[%clk 0:02:46.6]}
12... Bxc3+ {[%clk 0:02:32.4]} 13. Qxc3 {[%clk 0:02:47.5]} 13... Qe5 {[%clk
0:02:30.5]} 14. Qxe5 {[%clk 0:02:46.7]} 14... Nxe5 {[%clk 0:02:31.4]} 15. f4
{[%clk 0:02:38.1]} 15... Ng6 {[%clk 0:02:21.7]} 16. g3 {[%clk 0:02:37.9]} 16...
Bd7 {[%clk 0:02:22.1]} 17. Bf3 {[%clk 0:02:37.6]} 17... Rc8 {[%clk 0:02:22.6]}
18. O-O-O {[%clk 0:02:35.6]} 18... b6 {[%clk 0:02:20.4]} 19. Rhe1 {[%clk
0:02:27.4]} 19... Ne7 {[%clk 0:02:16.7]} 20. Nd2 {[%clk 0:02:25.8]} 20... Nf5
{[%clk 0:01:57.1]} 21. Ne4 {[%clk 0:02:21.5]} 21... Ke7 {[%clk 0:01:56]} 22. Bg4
{[%clk 0:02:14.8]} 22... Nh6 {[%clk 0:01:32.1]} 23. Bh3 {[%clk 0:02:13.7]} 23...
Bc6 {[%clk 0:01:26.3]} 24. Nd6 {[%clk 0:02:01.5]} 24... Rcd8 {[%clk 0:01:26]}
25. Nc4 {[%clk 0:02:02]} 25... Bf3 {[%clk 0:01:21.8]} 26. Rxd8 {[%clk
0:02:00.4]} 26... Rxd8 {[%clk 0:01:22.7]} 27. Ne5 {[%clk 0:02:00.6]} 27... Bb7
{[%clk 0:01:21.6]} 28. b3 {[%clk 0:01:46.5]} 28... Rd6 {[%clk 0:01:17]} 29. Nc4
{[%clk 0:01:39.9]} 29... Rd8 {[%clk 0:01:15.8]} 30. f5 {[%clk 0:01:25.9]} 30...
Bd5 {[%clk 0:01:14.4]} 31. Ne5 {[%clk 0:01:06]} 31... f6 {[%clk 0:01:09.6]} 32.
Nd3 {[%clk 0:00:53.5]} 32... e5 {[%clk 0:01:08]} 33. g4 {[%clk 0:00:33.5]} 33...
Bb7 {[%clk 0:01:04.6]} 34. g5 {[%clk 0:00:30.1]} 34... Nf7 {[%clk 0:01:04.7]}
35. gxf6+ {[%clk 0:00:28.1]} 35... gxf6 {[%clk 0:01:05.6]} 36. Rg1 {[%clk
0:00:27.3]} 36... Ng5 {[%clk 0:00:53.7]} 37. Bg2 {[%clk 0:00:24.4]} 37... e4
{[%clk 0:00:50.6]} 38. Nf4 {[%clk 0:00:22.6]} 38... Ba8 {[%clk 0:00:42.4]} 39.
Re1 {[%clk 0:00:21]} 39... Kf7 {[%clk 0:00:38.5]} 40. h4 {[%clk 0:00:15.6]}
40... Nf3 {[%clk 0:00:39]} 41. Bxf3 {[%clk 0:00:15]} 41... exf3 {[%clk
0:00:39.9]} 42. Ne6 {[%clk 0:00:15.3]} 42... Rd5 {[%clk 0:00:32.8]} 43. Nc7
{[%clk 0:00:15.2]} 43... Re5 {[%clk 0:00:33.4]} 44. Rxe5 {[%clk 0:00:07.5]}
44... f2 {[%clk 0:00:33.4]} 45. Re6 {[%clk 0:00:01.8]} 45... f1=Q+ {[%clk
0:00:33.4]} 46. Kb2 {[%clk 0:00:02.7]} 46... Qxf5 {[%clk 0:00:32.1]} 47. Rd6
{[%clk 0:00:02.7]} 47... Qe5+ {[%clk 0:00:32.2]} 0-1

[Event "*** Titled Tuesday Blitz"]
[Site "Chess.com"]
[Date "2021.03.09"]
[Round "4"]
[White "Sagar_Raina"]
[Black "eldur16"]
[Result "0-1"]
[WhiteElo "2274"]
[BlackElo "2572"]
[TimeControl "180+1"]
[EndTime "10:42:05 PST"]
[Termination "eldur16 won on time"]

1. d4 {[%clk 0:03:00.9]} 1... d6 {[%clk 0:02:58.6]} 2. c4 {[%clk 0:02:55.8]}
2... e5 {[%clk 0:02:57.2]} 3. Nc3 {[%clk 0:02:55.1]} 3... exd4 {[%clk
0:02:56.7]} 4. Qxd4 {[%clk 0:02:54.5]} 4... Nc6 {[%clk 0:02:56.7]} 5. Qd2 {[%clk
0:02:51.7]} 5... Nf6 {[%clk 0:02:56.4]} 6. g3 {[%clk 0:02:47.1]} 6... Be6 {[%clk
0:02:55.8]} 7. Nd5 {[%clk 0:02:26.8]} 7... Ne5 {[%clk 0:02:46.5]} 8. b3 {[%clk
0:02:20.1]} 8... Bxd5 {[%clk 0:02:27.9]} 9. cxd5 {[%clk 0:02:17.8]} 9... c6
{[%clk 0:02:27]} 10. dxc6 {[%clk 0:01:51.6]} 10... bxc6 {[%clk 0:02:26.2]} 11.
Bg2 {[%clk 0:01:50.4]} 11... d5 {[%clk 0:02:24]} 12. Bb2 {[%clk 0:01:49.3]}
12... Bd6 {[%clk 0:02:16.8]} 13. Nh3 {[%clk 0:01:43.1]} 13... O-O {[%clk
0:02:13]} 14. O-O {[%clk 0:01:42.2]} 14... Re8 {[%clk 0:02:11.4]} 15. Rac1
{[%clk 0:01:41]} 15... Qd7 {[%clk 0:02:03.3]} 16. Nf4 {[%clk 0:01:37.8]} 16...
a5 {[%clk 0:02:02.5]} 17. Nd3 {[%clk 0:01:19.1]} 17... a4 {[%clk 0:01:56.9]} 18.
Nxe5 {[%clk 0:01:13.5]} 18... Bxe5 {[%clk 0:01:55.7]} 19. Bxe5 {[%clk
0:00:57.1]} 19... Rxe5 {[%clk 0:01:54.8]} 20. bxa4 {[%clk 0:00:52.5]} 20... Rxa4
{[%clk 0:01:49.2]} 21. Qc2 {[%clk 0:00:36.9]} 21... Ra6 {[%clk 0:01:45.8]} 22.
a4 {[%clk 0:00:35.1]} 22... h5 {[%clk 0:01:40]} 23. e3 {[%clk 0:00:31.6]} 23...
h4 {[%clk 0:01:38.5]} 24. Ra1 {[%clk 0:00:27.2]} 24... Re8 {[%clk 0:01:22.8]}
25. Rfb1 {[%clk 0:00:25.2]} 25... Rea8 {[%clk 0:01:17.3]} 26. Rb4 {[%clk
0:00:20]} 26... h3 {[%clk 0:01:11.5]} 27. Bf3 {[%clk 0:00:18.1]} 27... Ra5
{[%clk 0:01:01.3]} 28. Rh4 {[%clk 0:00:17.6]} 28... c5 {[%clk 0:00:59.4]} 29.
Bg4 {[%clk 0:00:14.7]} 29... Nxg4 {[%clk 0:00:52.9]} 30. Qh7+ {[%clk 0:00:13.8]}
30... Kf8 {[%clk 0:00:53]} 31. Qh8+ {[%clk 0:00:14.2]} 31... Ke7 {[%clk
0:00:53]} 32. Qxg7 {[%clk 0:00:14.7]} 32... Nf6 {[%clk 0:00:49.7]} 33. Rf4
{[%clk 0:00:12.4]} 33... R8a6 {[%clk 0:00:45.3]} 34. Rb1 {[%clk 0:00:11.8]}
34... Rxa4 {[%clk 0:00:40.6]} 35. Qg5 {[%clk 0:00:11.3]} 35... Ra1 {[%clk
0:00:30.5]} 36. Qe5+ {[%clk 0:00:07.8]} 36... Qe6 {[%clk 0:00:20.7]} 37. Qxa1
{[%clk 0:00:05.8]} 37... Rxa1 {[%clk 0:00:19.7]} 38. Rxa1 {[%clk 0:00:06.7]}
38... c4 {[%clk 0:00:16.9]} 39. Ra7+ {[%clk 0:00:05.8]} 39... Kf8 {[%clk
0:00:16.6]} 40. Ra8+ {[%clk 0:00:04.2]} 40... Kg7 {[%clk 0:00:16.5]} 41. Ra1
{[%clk 0:00:03.3]} 41... c3 {[%clk 0:00:16.1]} 42. Rc1 {[%clk 0:00:03.1]} 42...
Ne4 {[%clk 0:00:16.1]} 0-1

[Event "*** Titled Tuesday Blitz"]
[Site "Chess.com"]
[Date "2021.03.09"]
[Round "4"]
[White "SharapovEvgeny"]
[Black "Lagmantr"]
[Result "1-0"]
[WhiteElo "2474"]
[BlackElo "2715"]
[TimeControl "180+1"]
[EndTime "10:42:05 PST"]
[Termination "SharapovEvgeny won on time"]

1. c4 {[%clk 0:02:59.5]} 1... Nf6 {[%clk 0:02:59.8]} 2. Nc3 {[%clk 0:02:59.2]}
2... e6 {[%clk 0:03:00.3]} 3. e4 {[%clk 0:02:58.2]} 3... d5 {[%clk 0:03:01]} 4.
e5 {[%clk 0:02:57.9]} 4... d4 {[%clk 0:03:01.4]} 5. exf6 {[%clk 0:02:57.2]} 5...
dxc3 {[%clk 0:03:02]} 6. fxg7 {[%clk 0:02:56.8]} 6... cxd2+ {[%clk 0:03:02.1]}
7. Qxd2 {[%clk 0:02:56.8]} 7... Qxd2+ {[%clk 0:03:02.2]} 8. Bxd2 {[%clk
0:02:56.8]} 8... Bxg7 {[%clk 0:03:02.9]} 9. O-O-O {[%clk 0:02:56.6]} 9... O-O
{[%clk 0:03:02.5]} 10. Ne2 {[%clk 0:02:56]} 10... Nc6 {[%clk 0:02:59.8]} 11. Bc3
{[%clk 0:02:55.5]} 11... e5 {[%clk 0:02:59.7]} 12. Ng3 {[%clk 0:02:50.6]} 12...
Be6 {[%clk 0:02:44.6]} 13. Bd3 {[%clk 0:02:49.3]} 13... f5 {[%clk 0:02:44.1]}
14. f3 {[%clk 0:02:49]} 14... Rad8 {[%clk 0:02:40.6]} 15. Rhe1 {[%clk
0:02:46.6]} 15... Nd4 {[%clk 0:02:31.7]} 16. Bxd4 {[%clk 0:02:44.6]} 16... Rxd4
{[%clk 0:02:31]} 17. b3 {[%clk 0:02:43.1]} 17... a5 {[%clk 0:02:08.6]} 18. Bc2
{[%clk 0:02:42]} 18... c5 {[%clk 0:02:08.8]} 19. Ne2 {[%clk 0:02:39.3]} 19...
Rh4 {[%clk 0:01:58.8]} 20. h3 {[%clk 0:02:36.3]} 20... a4 {[%clk 0:01:38.4]} 21.
Rd6 {[%clk 0:02:25.5]} 21... axb3 {[%clk 0:01:36.3]} 22. axb3 {[%clk 0:02:20.1]}
22... Rh6 {[%clk 0:01:33.3]} 23. Red1 {[%clk 0:02:03.5]} 23... Bf6 {[%clk
0:01:16.6]} 24. Rxe6 {[%clk 0:01:58.7]} 24... Bg5+ {[%clk 0:01:16.8]} 25. f4
{[%clk 0:01:58.1]} 25... Rxe6 {[%clk 0:01:17.3]} 26. fxg5 {[%clk 0:01:57.8]}
26... Rg6 {[%clk 0:01:17.8]} 27. h4 {[%clk 0:01:56.6]} 27... h6 {[%clk
0:01:18.2]} 28. Ng3 {[%clk 0:01:50]} 28... e4 {[%clk 0:00:54.2]} 29. Nxf5 {[%clk
0:01:49]} 29... Re6 {[%clk 0:00:39]} 30. Nxh6+ {[%clk 0:01:45]} 30... Kg7 {[%clk
0:00:38.9]} 31. Re1 {[%clk 0:01:41.2]} 31... Rf2 {[%clk 0:00:28.2]} 32. g4
{[%clk 0:01:25.4]} 32... Kf8 {[%clk 0:00:09.7]} 33. Nf5 {[%clk 0:01:22.7]} 33...
Rf4 {[%clk 0:00:09.9]} 34. Ne3 {[%clk 0:01:16.6]} 34... Ke8 {[%clk 0:00:08.1]}
35. h5 {[%clk 0:01:13.4]} 35... Rf3 {[%clk 0:00:08.1]} 36. g6 {[%clk 0:01:12.1]}
36... Rg3 {[%clk 0:00:07.6]} 37. Kd2 {[%clk 0:00:58.8]} 37... Kf8 {[%clk
0:00:07.1]} 38. Rf1+ {[%clk 0:00:53.6]} 38... Kg8 {[%clk 0:00:07.4]} 39. Rf5
{[%clk 0:00:49.7]} 39... Rd6+ {[%clk 0:00:05.7]} 40. Rd5 {[%clk 0:00:46.7]}
40... Rf6 {[%clk 0:00:05.7]} 41. Bxe4 {[%clk 0:00:41.6]} 41... Re6 {[%clk
0:00:04.4]} 42. h6 {[%clk 0:00:34]} 42... Re8 {[%clk 0:00:02.9]} 43. g7 {[%clk
0:00:28.2]} 43... Rh3 {[%clk 0:00:01.2]} 44. Rh5 {[%clk 0:00:19.9]} 1-0

[Event "*** Titled Tuesday Blitz"]
[Site "Chess.com"]
[Date "2021.03.09"]
[Round "4"]
[White "FMLorneTwitch"]
[Black "SlavenPastar"]
[Result "0-1"]
[WhiteElo "2340"]
[BlackElo "2555"]
[TimeControl "180+1"]
[EndTime "10:42:06 PST"]
[Termination "SlavenPastar won by checkmate"]

1. d4 {[%clk 0:03:00.9]} 1... b6 {[%clk 0:03:00.9]} 2. c4 {[%clk 0:02:58.6]}
2... Bb7 {[%clk 0:03:01.8]} 3. Nc3 {[%clk 0:02:57.8]} 3... g6 {[%clk 0:03:02.7]}
4. e4 {[%clk 0:02:57.7]} 4... Bg7 {[%clk 0:03:03.4]} 5. Be3 {[%clk 0:02:57.1]}
5... e6 {[%clk 0:03:04]} 6. d5 {[%clk 0:02:55.8]} 6... Ne7 {[%clk 0:03:03.8]} 7.
Nf3 {[%clk 0:02:55.2]} 7... O-O {[%clk 0:03:02.9]} 8. Bd3 {[%clk 0:02:53.6]}
8... a5 {[%clk 0:03:03.2]} 9. Qd2 {[%clk 0:02:50]} 9... Re8 {[%clk 0:03:00.1]}
10. Bh6 {[%clk 0:02:45.2]} 10... Bh8 {[%clk 0:02:59.6]} 11. h4 {[%clk
0:02:44.8]} 11... Na6 {[%clk 0:02:58.4]} 12. O-O-O {[%clk 0:02:43.8]} 12... Nc5
{[%clk 0:02:53.9]} 13. Bc2 {[%clk 0:02:43]} 13... a4 {[%clk 0:02:53.4]} 14. h5
{[%clk 0:02:41.5]} 14... a3 {[%clk 0:02:53.7]} 15. b3 {[%clk 0:02:37.7]} 15...
b5 {[%clk 0:02:40.5]} 16. Nxb5 {[%clk 0:02:31.1]} 16... Bb2+ {[%clk 0:02:37.1]}
17. Kb1 {[%clk 0:02:30.1]} 17... exd5 {[%clk 0:02:31.9]} 18. exd5 {[%clk
0:02:27.9]} 18... Ba6 {[%clk 0:01:45.5]} 19. d6 {[%clk 0:02:14.2]} 19... cxd6
{[%clk 0:01:00.4]} 20. Nxd6 {[%clk 0:02:15.1]} 20... Rb8 {[%clk 0:00:47.5]} 21.
Rhe1 {[%clk 0:01:57.7]} 21... Na4 {[%clk 0:00:29.5]} 22. Re3 {[%clk 0:01:38.9]}
22... Nd5 {[%clk 0:00:15.1]} 23. Bxg6 {[%clk 0:01:04.5]} 23... Nac3+ {[%clk
0:00:12.7]} 24. Rxc3 {[%clk 0:00:56.8]} 24... Nxc3+ {[%clk 0:00:12.3]} 25. Kc2
{[%clk 0:00:56.7]} 25... fxg6 {[%clk 0:00:11.4]} 26. Nxe8 {[%clk 0:00:38.3]}
26... Qxe8 {[%clk 0:00:11.3]} 27. Re1 {[%clk 0:00:38.7]} 27... Qf7 {[%clk
0:00:10.1]} 28. Nd4 {[%clk 0:00:19.6]} 28... Nxa2 {[%clk 0:00:07.4]} 29. f3
{[%clk 0:00:12.3]} 29... Nb4+ {[%clk 0:00:07.6]} 30. Kb1 {[%clk 0:00:11.4]}
30... Qf6 {[%clk 0:00:06.7]} 31. Be3 {[%clk 0:00:10.7]} 31... Bxd4 {[%clk
0:00:05.2]} 32. Bxd4 {[%clk 0:00:11.6]} 32... a2+ {[%clk 0:00:05.3]} 33. Kb2
{[%clk 0:00:11.1]} 33... Qf5 {[%clk 0:00:04.5]} 34. Ra1 {[%clk 0:00:10.9]} 34...
Nd3+ {[%clk 0:00:04.5]} 35. Kxa2 {[%clk 0:00:09.7]} 35... Bc8 {[%clk 0:00:04]}
36. b4 {[%clk 0:00:08.5]} 36... Nxb4+ {[%clk 0:00:03.7]} 37. Ka3 {[%clk
0:00:07.2]} 37... Nc6 {[%clk 0:00:04]} 38. Bc3 {[%clk 0:00:06.5]} 38... Ra8+
{[%clk 0:00:04.2]} 39. Kb3 {[%clk 0:00:06.9]} 39... Rb8+ {[%clk 0:00:04.7]} 40.
Ka3 {[%clk 0:00:06.8]} 40... d5 {[%clk 0:00:05.2]} 41. cxd5 {[%clk 0:00:06.5]}
41... Ra8+ {[%clk 0:00:05.2]} 42. Kb2 {[%clk 0:00:07]} 42... Rb8+ {[%clk
0:00:06.1]} 43. Kc1 {[%clk 0:00:07.3]} 43... Ne7 {[%clk 0:00:06.4]} 44. Rb1
{[%clk 0:00:07.3]} 44... Rxb1# {[%clk 0:00:05.5]} 0-1

[Event "*** Titled Tuesday Blitz"]
[Site "Chess.com"]
[Date "2021.03.09"]
[Round "4"]
[White "elcandado"]
[Black "Bodnar_Mykola"]
[Result "1-0"]
[WhiteElo "2668"]
[BlackElo "2497"]
[TimeControl "180+1"]
[EndTime "10:42:07 PST"]
[Termination "elcandado won by resignation"]

1. d4 {[%clk 0:03:00.9]} 1... Nf6 {[%clk 0:02:59.8]} 2. Bf4 {[%clk 0:03:00.3]}
2... g6 {[%clk 0:02:59.5]} 3. Nc3 {[%clk 0:02:59.6]} 3... d5 {[%clk 0:02:57.5]}
4. Nb5 {[%clk 0:02:58.8]} 4... Na6 {[%clk 0:02:56.9]} 5. e3 {[%clk 0:02:57.9]}
5... Bg7 {[%clk 0:02:55.3]} 6. h3 {[%clk 0:02:57]} 6... O-O {[%clk 0:02:55.1]}
7. Nf3 {[%clk 0:02:56.2]} 7... c6 {[%clk 0:02:54]} 8. Na3 {[%clk 0:02:55.4]}
8... Ne4 {[%clk 0:02:41]} 9. Be2 {[%clk 0:02:54.3]} 9... Qa5+ {[%clk 0:02:39.4]}
10. c3 {[%clk 0:02:53.9]} 10... b5 {[%clk 0:02:21.4]} 11. Nb1 {[%clk 0:02:36.3]}
11... b4 {[%clk 0:02:18.6]} 12. O-O {[%clk 0:01:52]} 12... bxc3 {[%clk
0:00:49.8]} 13. Nxc3 {[%clk 0:01:49.5]} 13... Nxc3 {[%clk 0:00:47.9]} 14. bxc3
{[%clk 0:01:50.4]} 14... Be6 {[%clk 0:00:39.7]} 15. Ne5 {[%clk 0:01:29.3]} 15...
Rfc8 {[%clk 0:00:37.1]} 16. c4 {[%clk 0:01:16.6]} 16... f6 {[%clk 0:00:28.6]}
17. Nd3 {[%clk 0:00:32.4]} 17... dxc4 {[%clk 0:00:24.6]} 18. Nb2 {[%clk
0:00:32]} 18... c3 {[%clk 0:00:24.6]} 19. Nc4 {[%clk 0:00:31.5]} 19... Qb4
{[%clk 0:00:15.3]} 20. Rb1 {[%clk 0:00:26.2]} 20... Qxc4 {[%clk 0:00:10.4]} 21.
Bxc4 {[%clk 0:00:25.1]} 21... Bxc4 {[%clk 0:00:11.3]} 22. Re1 {[%clk 0:00:23.2]}
22... e5 {[%clk 0:00:11.1]} 23. dxe5 {[%clk 0:00:20.6]} 23... fxe5 {[%clk
0:00:11.7]} 24. Bg5 {[%clk 0:00:19.2]} 24... e4 {[%clk 0:00:12]} 25. Rb7 {[%clk
0:00:14.9]} 25... Bd3 {[%clk 0:00:11.7]} 26. Qb3+ {[%clk 0:00:13.8]} 26... Kh8
{[%clk 0:00:11.1]} 27. Qf7 {[%clk 0:00:12.5]} 27... Rc7 {[%clk 0:00:09.4]} 28.
Rxc7 {[%clk 0:00:11.6]} 28... Nxc7 {[%clk 0:00:10.3]} 29. Qxc7 {[%clk
0:00:10.9]} 29... c2 {[%clk 0:00:10.1]} 30. Qf7 {[%clk 0:00:10.8]} 30... Rf8
{[%clk 0:00:09.3]} 31. Qe7 {[%clk 0:00:10.7]} 31... Kg8 {[%clk 0:00:08.6]} 32.
Qe6+ {[%clk 0:00:09.7]} 32... Kh8 {[%clk 0:00:08.9]} 33. Qb3 {[%clk 0:00:09.7]}
33... h6 {[%clk 0:00:07.7]} 34. Be7 {[%clk 0:00:09.6]} 34... Re8 {[%clk
0:00:08]} 35. Bc5 {[%clk 0:00:09.8]} 35... Kh7 {[%clk 0:00:07]} 36. Bd4 {[%clk
0:00:10.1]} 36... Bxd4 {[%clk 0:00:05.1]} 37. exd4 {[%clk 0:00:11]} 37... Re7
{[%clk 0:00:05.1]} 38. Rc1 {[%clk 0:00:10.9]} 38... Rd7 {[%clk 0:00:05]} 39.
Rxc2 {[%clk 0:00:10.8]} 39... Bxc2 {[%clk 0:00:05.9]} 40. Qxc2 {[%clk
0:00:11.2]} 40... Rxd4 {[%clk 0:00:06.8]} 41. Qxc6 {[%clk 0:00:11.4]} 41... Rd1+
{[%clk 0:00:07.7]} 42. Kh2 {[%clk 0:00:10.9]} 42... Rf1 {[%clk 0:00:08.3]} 43.
Qc7+ {[%clk 0:00:08.4]} 43... Kg8 {[%clk 0:00:08.2]} 44. Qxa7 {[%clk 0:00:08.9]}
44... e3 {[%clk 0:00:08.4]} 45. Qxe3 {[%clk 0:00:08.3]} 45... Ra1 {[%clk
0:00:09.3]} 46. a3 {[%clk 0:00:08.2]} 1-0

[Event "*** Titled Tuesday Blitz"]
[Site "Chess.com"]
[Date "2021.03.09"]
[Round "4"]
[White "GigaQuparadze"]
[Black "BahadirOzen"]
[Result "1-0"]
[WhiteElo "2959"]
[BlackElo "2765"]
[TimeControl "180+1"]
[EndTime "10:42:08 PST"]
[Termination "GigaQuparadze won by resignation"]

1. e4 {[%clk 0:03:00.9]} 1... g6 {[%clk 0:03:00.3]} 2. d4 {[%clk 0:03:00.4]}
2... d6 {[%clk 0:02:58.8]} 3. Nc3 {[%clk 0:03:00.6]} 3... Bg7 {[%clk 0:02:58.5]}
4. Bg5 {[%clk 0:03:00]} 4... a6 {[%clk 0:02:58]} 5. Qd2 {[%clk 0:02:58.6]} 5...
Nd7 {[%clk 0:02:57]} 6. O-O-O {[%clk 0:02:58]} 6... b5 {[%clk 0:02:56.9]} 7. Kb1
{[%clk 0:02:57.8]} 7... Bb7 {[%clk 0:02:54.9]} 8. f3 {[%clk 0:02:55.8]} 8... h6
{[%clk 0:02:51.2]} 9. Be3 {[%clk 0:02:55.1]} 9... Ngf6 {[%clk 0:02:50.5]} 10. h4
{[%clk 0:02:54.7]} 10... e6 {[%clk 0:02:50.1]} 11. g4 {[%clk 0:02:54]} 11... Nb6
{[%clk 0:02:50.3]} 12. Nh3 {[%clk 0:02:44.6]} 12... b4 {[%clk 0:02:42.4]} 13.
Ne2 {[%clk 0:02:44.1]} 13... Nc4 {[%clk 0:02:42.1]} 14. Qc1 {[%clk 0:02:44.1]}
14... Nxe3 {[%clk 0:02:42.2]} 15. Qxe3 {[%clk 0:02:44.2]} 15... Nd7 {[%clk
0:02:42.5]} 16. h5 {[%clk 0:02:40.9]} 16... g5 {[%clk 0:02:41.6]} 17. f4 {[%clk
0:02:40.9]} 17... gxf4 {[%clk 0:02:42.5]} 18. Nexf4 {[%clk 0:02:37]} 18... Qe7
{[%clk 0:02:37]} 19. Bg2 {[%clk 0:02:33.4]} 19... a5 {[%clk 0:02:32.2]} 20. Rhe1
{[%clk 0:02:19.3]} 20... a4 {[%clk 0:02:12]} 21. Qd2 {[%clk 0:02:18.7]} 21... b3
{[%clk 0:02:05.4]} 22. Nd5 {[%clk 0:02:18.5]} 22... bxa2+ {[%clk 0:02:03.1]} 23.
Kxa2 {[%clk 0:02:18.1]} 23... Qd8 {[%clk 0:01:56]} 24. Nc3 {[%clk 0:02:17.7]}
24... Ra5 {[%clk 0:01:07.9]} 25. e5 {[%clk 0:02:05.3]} 25... Bxg2 {[%clk
0:01:05.7]} 26. Qxg2 {[%clk 0:02:05.6]} 26... Qa8 {[%clk 0:00:47.3]} 27. Qxa8+
{[%clk 0:01:48.8]} 27... Rxa8 {[%clk 0:00:48.2]} 28. Nb5 {[%clk 0:01:49.1]}
28... Ke7 {[%clk 0:00:48.6]} 29. Nxc7 {[%clk 0:01:47.9]} 29... Ra5 {[%clk
0:00:48]} 30. c4 {[%clk 0:01:21.8]} 30... dxe5 {[%clk 0:00:47.3]} 31. d5 {[%clk
0:01:21.1]} 31... Rb8 {[%clk 0:00:41]} 32. g5 {[%clk 0:01:12.1]} 32... e4 {[%clk
0:00:40.1]} 33. Re2 {[%clk 0:01:12.4]} 33... Nc5 {[%clk 0:00:34.8]} 34. dxe6
{[%clk 0:01:02.1]} 34... fxe6 {[%clk 0:00:34]} 35. Nb5 {[%clk 0:00:50.8]} 35...
Raxb5 {[%clk 0:00:17.9]} 36. cxb5 {[%clk 0:00:50.6]} 36... Rxb5 {[%clk
0:00:18.8]} 37. gxh6 {[%clk 0:00:46.8]} 37... Bxh6 {[%clk 0:00:19.7]} 38. Nf2
{[%clk 0:00:46.7]} 38... Rb4 {[%clk 0:00:17.7]} 39. Ng4 {[%clk 0:00:35.9]} 39...
Bg7 {[%clk 0:00:13.6]} 40. h6 {[%clk 0:00:36.2]} 40... Bh8 {[%clk 0:00:14.1]}
41. Nf2 {[%clk 0:00:36.4]} 41... a3 {[%clk 0:00:06.8]} 42. bxa3 {[%clk
0:00:33.8]} 42... Rb8 {[%clk 0:00:07.1]} 43. Rb1 {[%clk 0:00:28.9]} 43... Ra8
{[%clk 0:00:02.6]} 44. Nxe4 {[%clk 0:00:28.6]} 44... Na4 {[%clk 0:00:03.2]} 45.
Rb7+ {[%clk 0:00:27.8]} 45... Kf8 {[%clk 0:00:02.9]} 46. Rf2+ {[%clk 0:00:27]}
46... Ke8 {[%clk 0:00:02.7]} 47. Nd6+ {[%clk 0:00:26.7]} 1-0